Cogmind - Beta 11.1 @@@ ROGUE MODE // 2022.04.23 @ 17:47:17 Player: Apotheos1s Result: Destroyed by S-10 Pest with Light Assault Rifle Performance ------------- Evolutions (0) 0 Regions Visited (2) 400 Robots Destroyed (12) 60 Value Destroyed (278) 278 Prototype IDs (0) 0 Alien Tech Used (0) 0 Bonus (0) 0 TOTAL SCORE: 738 Bonus ------- None Cogmind --------- Core Integrity 0/250 Matter 300/300 Energy 100/100 System Corruption 0% Temperature Cool (0) Movement Core (150) Ox2 Location -10/Mines Parts ------- > --- POWER (1) -------- (None) > --- PROPULSION (2) --- (None) > --- UTILITY (2) ------ Small Storage Unit Signal Interpreter > --- WEAPON (2) ------- Flail Flail > --- INVENTORY (8) ---- Light Ion Engine Aluminum Leg Aluminum Leg Aluminum Leg Aluminum Leg Flight Unit Large Battery (200) Flail Peak State ------------ > --- POWER ------------ Light Ion Engine > --- PROPULSION ------- Hover Unit Hover Unit > --- UTILITY ---------- Small Storage Unit > --- WEAPON ----------- Flail Flail > --- INVENTORY -------- Light Ion Engine Hover Unit Large Battery EM Pulse Gun EM Pulse Gun EM Pulse Gun Flail Flail [Rating: 9] Favorites ----------- Power Light Ion Engine Engine Light Ion Engine Propulsion Hover Unit Treads Light Treads Hover Unit Hover Unit Utility Small Storage Unit Storage Small Storage Unit Processor Signal Interpreter Weapon Flail Energy Gun EM Pulse Gun Impact Weapon Flail Slashing Weapon Mining Claw Build | -11 -10 -10 ------- Run | Scr Mat Min Slots Evolved . | . . . Power . | . . . Propulsion . | . . . Utility . | . . . Weapon . | . . . Parts Attached 16 | 6 6 4 Power 1 | 1 . . Engine 1 | 1 . . Core . | . . . Reactor . | . . . Propulsion 7 | 2 3 2 Treads 2 | 2 . . Leg . | . . . Wheel . | . . . Hover 5 | . 3 2 Flight . | . . . Utility 2 | 1 1 . Device . | . . . Storage 1 | 1 . . Processor 1 | . 1 . Hackware . | . . . Protection . | . . . Artifact . | . . . Weapon 6 | 2 2 2 Energy Gun 2 | 2 . . Energy Cannon . | . . . Ballistic Gun . | . . . Ballistic Cannon . | . . . Launcher . | . . . Special Weapon . | . . . Impact Weapon 3 | . 2 1 Slashing Weapon 1 | . . 1 Piercing Weapon . | . . . Special Melee Weapon . | . . . Unidentified Prototypes . | . . . Parts Lost 6 | . 1 5 Power 1 | . . 1 Propulsion 5 | . 1 4 Utility . | . . . Weapon . | . . . Highest Loss Streak 3 | . 1 3 To Critical Strikes . | . . . Average Slot Usage (%) 94 | . 91 96 Engine 12 | . 14 12 Treads 1 | . 5 . Hover 24 | . 22 26 Storage 14 | . 14 14 Processor 11 | . 6 14 Energy Gun 2 | . 8 . Impact Weapon 25 | . 19 27 Naked Turns . | . . . Heaviest Build 12 | 12 12 12 Greatest Support 40 | 40 40 12 Greatest Overweight (x) 2 | . . 2 Average Overweight (x) . | . . . Largest Inventory Capacity 8 | 8 8 8 Average Capacity 7 | 7 8 8 Most Carried 8 | 5 8 8 Average Carried 5 | 2 5 5 Final Capacity 8 | 8 8 8 Final Carried 8 | 3 6 8 Class Distribution -------------------- 100% | Mutant Dominant Class ---------------- Mutant | -10/Materials Mutant | -10/Mines Resources | -11 -10 -10 ----------- Run | Scr Mat Min Matter Collected 355 | 193 66 96 Remotely . | . . . Salvage Created 331 | . 187 144 Parts 15 | . 10 5 Haulers Intercepted . | . . . Recyclers Shooed 1 | . 1 . Parts Field Recycled . | . . . Retrieved Matter . | . . . Parts Self-Destructed . | . . . Prevented . | . . . Kills | -11 -10 -10 ------- Run | Scr Mat Min Combat Hostiles Destroyed 10 | . 6 4 Melee 7 | . 5 2 Classes Destroyed 4 | . 4 . Builder 1 | . 1 . Watcher 1 | . 1 . Swarmer 4 | . 3 1 Grunt 6 | . 3 3 Best Kill Streak 3 | . 3 3 Combat Bots Only 3 | . 3 3 Max Kills in Single Turn 1 | . 1 1 Gunslinging . | . . . Exploded . | . . . Melee 1 | . 1 1 Uniques/NPCs Destroyed . | . . . Combat | -11 -10 -10 -------- Run | Scr Mat Min Damage Taken 693 | . 211 482 Core 255 | . 73 182 Absorbed by Shields . | . . . Core Remaining (%) 100 | 100 . . Volleys Fired . | . . . Largest . | . . . Hottest . | . . . Shots Fired . | . . . Gun . | . . . Cannon . | . . . Launcher . | . . . Special . | . . . Kinetic . | . . . Thermal . | . . . Explosive . | . . . Electromagnetic . | . . . Robot Hit Streak . | . . . Robot Miss Streak . | . . . Penetration Max . | . . . Secondary Targets . | . . . Shots Hit Robots 22 | . 15 7 Core Hits 7 | . 5 2 Critical Kills 4 | . 3 1 Critical Parts Destroyed 3 | . 2 1 Critical Strikes 7 | . 5 2 Smash 7 | . 5 2 Melee Attacks 42 | . 29 13 Impact 42 | . 29 13 Slashing . | . . . Piercing . | . . . Sneak Attacks 3 | . 3 . Combat Hostiles . | . . . Follow-up Attacks 5 | . 3 2 Damage Inflicted 943 | . 698 245 Guns . | . . . Cannons . | . . . Explosions . | . . . Melee 943 | . 698 245 Ramming . | . . . Kinetic . | . . . Thermal . | . . . Explosive . | . . . Electromagnetic . | . . . Impact 943 | . 698 245 Slashing . | . . . Piercing . | . . . Highest Corruption . | . . . Average Corruption . | . . . Corruption Purged . | . . . Corruption Blocked . | . . . Overload Shots . | . . . Overflow Damage 227 | . 183 44 Projectiles . | . . . Explosions . | . . . Melee 227 | . 183 44 Knockbacks 4 | . 3 1 Impact 4 | . 3 1 Kinetic . | . . . Secondary . | . . . Self-Inflicted Damage . | . . . Shots . | . . . Rammed . | . . . Targets Rammed . | . . . Kicked . | . . . Crushed . | . . . Highest Temperature 11 | . 11 . Average Temperature 11 | . 11 . Received Heat Transfer 216 | . 90 126 Siege Activations . | . . . Robots Corrupted . | . . . Combat Hostiles . | . . . Parts Fried 7 | . 4 3 Impact Corruptions 14 | . 10 4 Robots Melted . | . . . Combat Hostiles . | . . . Parts Melted . | . . . Heat Transferred . | . . . Parts Sabotaged . | . . . Parts Stolen . | . . . Parts Stripped . | . . . Power Chain Reactions . | . . . Missiles Intercepted . | . . . Alert | -11 -10 -10 ------- Run | Scr Mat Min Peak Influence 217 | . 217 84 Initial 84 | . . 84 Average 56 | . 57 62 Maximum Alert Level 1 | . 1 . Low Security (%) 98 | 100 95 100 Level 1 1 | . 4 . Level 2 . | . . . Level 3 . | . . . Level 4 . | . . . Level 5 . | . . . High Security . | . . . Max Security . | . . . Squads Dispatched 1 | . 1 . Investigation . | . . . Extermination . | . . . Reinforcement 1 | . 1 . Assault . | . . . Garrison . | . . . Intercept . | . . . Searches Triggered . | . . . Construction Impeded . | . . . Haulers Reinforced . | . . . Active Scanning Responses . | . . . Cargo Convoy Interrupts . | . . . Stealth | -11 -10 -10 --------- Run | Scr Mat Min Distress Signals 2 | . 1 1 Communications Jammed . | . . . Distress Signals . | . . . Times Spotted 23 | . 11 12 Peak Tracking Total 7 | . 4 7 Tactical Retreats 2 | . . 2 Traps | -11 -10 -10 ------- Run | Scr Mat Min Traps Triggered . | . . . Indirectly . | . . . Trap Hack Attempts . | . . . Triggered . | . . . Disarmed . | . . . Reprogrammed . | . . . Reused . | . . . Traps Extracted . | . . . Installed . | . . . Triggered . | . . . Machines | -11 -10 -10 ---------- Run | Scr Mat Min Machines Disabled . | . . . Max in Single Turn . | . . . Machines Sabotaged . | . . . Garrisons Compromised . | . . . Overloaded Fab Kills . | . . . Hacking | -11 -10 -10 --------- Run | Scr Mat Min Machines Accessed 3 | . 3 . Terminals 3 | . 3 . Fabricators . | . . . Repair Stations . | . . . Recycling Units . | . . . Scanalyzers . | . . . Garrison Access . | . . . Total Hacks 9 | . 9 . Successful 6 | . 6 . Failed 3 | . 3 . Catastrophic . | . . . Database Lockouts . | . . . Manual 7 | . 7 . Terminals 9 | . 9 . Fabricators . | . . . Repair Stations . | . . . Recycling Units . | . . . Scanalyzers . | . . . Garrison Access . | . . . Terminal Hacks 3 | . 3 . Unreport Threat 1 | . 1 . Hauler Manifests 1 | . 1 . Zone Layout 1 | . 1 . Fabricator Hacks . | . . . Repair Station Hacks . | . . . Recycling Unit Hacks . | . . . Scanalyzer . | . . . Garrison Access Hacks . | . . . Unauthorized Hacks 3 | . 3 . Terminals 3 | . 3 . Botnet 3 | . 3 . Fabricators . | . . . Repair Stations . | . . . Recycling Units . | . . . Scanalyzers . | . . . Garrison Access . | . . . Data Cores Recovered . | . . . Used . | . . . Hacking Detections 3 | . 3 . Full Trace Events . | . . . Feedback Events . | . . . Feedback Blocked . | . . . Robot Schematics Acquired . | . . . Robots Built . | . . . Authchips . | . . . Time . | . . . Total Robot Build Rating . | . . . Part Schematics Acquired . | . . . Parts Built . | . . . Authchips . | . . . Time . | . . . Total Part Build Rating . | . . . Parts Repaired . | . . . Time . | . . . Parts Recycled . | . . . Recycled Matter . | . . . Retrieved Matter . | . . . Retrieved Components . | . . . Parts Scanalyzed . | . . . Part Schematics Acquired . | . . . Parts Damaged . | . . . Bothacking | -11 -10 -10 ------------ Run | Scr Mat Min Used RIF Installer . | . . . Robots Hacked . | . . . Non-combat . | . . . Combat . | . . . Robot Hacks Applied . | . . . Relay Couplers Released . | . . . Fabnet Peak Effective % . | . . . Robots Rewired . | . . . Allies Hacked . | . . . Hacks Repelled . | . . . Allies | -11 -10 -10 -------- Run | Scr Mat Min Total Allies . | . . . Largest Group . | . . . Highest-Rated Group . | . . . Highest-Rated Ally . | . . . Total Orders . | . . . Ally Attacks . | . . . Total Damage . | . . . Kills . | . . . Allies Corrupted . | . . . Allies Melted . | . . . Intel | -11 -10 -10 ------- Run | Scr Mat Min Robot Analysis Total . | . . . Derelict Logs Recovered 2 | . . 2 Drone Launches . | . . . Drone Recoveries . | . . . Exploration | -11 -10 -10 ------------- Run | Scr Mat Min Turns Passed 991 | 75 305 611 Spaces Moved 522 | 54 285 183 Core 42 | 23 . 19 Treads 66 | 31 35 . Legs . | . . . Wheels . | . . . Hover 414 | . 250 164 Flight . | . . . Fastest Speed 50 | 50 56 56 Average Speed 72 | 113 68 67 Slowest Speed 160 | 160 160 150 Overloaded Moves . | . . . Propulsion Burnouts . | . . . Robots Hopped . | . . . Cave-ins Triggered . | . . . Exploration Rate (%) 28 | 4 39 41 Regions Visited 2 Branch Regions 1 Pre-discovered Areas . | . . . Known Exits Taken 1 | . 1 . Unknown Exits Taken 1 | 1 . . Scrap Searched . | . . . Spaces Dug . | . . . Terrain Destroyed . | . . . Melee . | . . . Projectile . | . . . AOE . | . . . Terrain Rammed . | . . . Walls Destroyed . | . . . Machines Disabled . | . . . Actions | -11 -10 -10 --------- Run | Scr Mat Min Total 1078 | 68 356 654 Wait 470 | . 22 448 Move 520 | 53 284 183 Hop . | . . . Pick Up 27 | 9 12 6 Fast Attach . | . . . Attach 11 | 6 2 3 Detach . | . . . Swap 5 | . 4 1 Drop 9 | . 7 2 Fire . | . . . Melee 36 | . 25 11 Ram . | . . . Kick . | . . . Crush . | . . . Escape Stasis . | . . . Rewire . | . . . Trap . | . . . Miscellaneous . | . . . Route ------- -11/Scrapyard -10/Materials -10/Mines (discovered 1 exit: [*Mat]) History --------- Turn | Location | Event 3 | -11/Scrapyard | Discovered new exit (range 16) 76 | -11/Scrapyard | Entered Materials 304 | -10/Materials | Build established: Mutant 376 | -10/Materials | Discovered new exit (range 8) 379 | -10/Materials | Identified exit to Mines 381 | -10/Materials | Entered Mines 407 | -10/Mines | Learned Materials security intel 414 | -10/Mines | Excavation squad dispatched 414 | -10/Mines | A large section of the Mines collapsed 664 | -10/Mines | Excavation squad dispatched 914 | -10/Mines | Excavation squad dispatched 920 | -10/Mines | Discovered new exit (range 10) 939 | -10/Mines | Learned location of 1 exit from Materials 949 | -10/Mines | Core integrity fell below 50% 972 | -10/Mines | Core integrity fell below 20% 991 | -10/Mines | Lost 3 parts (1p2n) 992 | -10/Mines | Destroyed by S-10 Pest with Light Assault Rifle Last Messages --------------- 00906_ U-05 Engineer lays Concrete. 00908_ Acquired Aluminum Leg. 00909_ T-07 Excavator is excavating. 00910_ U-05 Engineer lays Concrete. 00914_ ALERT: Derelict activity in mines confirmed. Dispatching additional escorted excavation squad. 00920_ EXIT=FOUND 00921_ Lgt. Ion Engine destroyed. 00923_ K-01 Serf destroyed. 00939_ Acquired derelict log, extracted data. Data stored: Materials exits (x1). 00949_ Flail follow-up attack on S-10 Pest. 00951_ Destroyed Flight Unit. 00951_ S-10 Pest system corrupted by crushing effect. 00951_ Hover Unit destroyed. 00956_ S-10 Pest destroyed. 00959_ S-10 Pest suffers critical hit (Smash). 00959_ S-10 Pest destroyed. 00960_ Hover Unit destroyed. 00964_ Flail follow-up attack on S-10 Pest. Map ----- +----------------------------------------------------+ | | | ???????????????????????????????????????????? | | ???????????????????????????????????????????? | | ???????????????????????????????????????????? | | ???????????????????????????????????????????? | | ???????????????????????????????????????????? | | ???????????????????????????????????????????? | | ???????????????????????????????????????????? | | ???????????????????????????????????????????? | | ???????????????????????????????????#???????? | | ??????????????????????????????????# ???????? | | ?????????????????????????????????# ???????? | | ????????????????????????# ?????## ???????? | | ???????????????????????# ?????? ????????? | | ??????????????????##### ?????? ???????? | | ?????????????????## ??????? ???????# | | ????????????????## ???????# ???????# | | ???????????????## #???????# #??????## | | ??????????????## ##??????# #?????## | | ?????????????## ##??#### ####### | | ?????????????# k #??# = ## | | ?????????????# s #??#$ %[ | | ??????????????# ##?# #### | | ???????????????# ### #??# ## | | ????????????#### g g #??## [ ### | | ????????????# @ sg #???# % ### | | ????????????# #######???# #### | | ????????????# ###### ##?????????# #?# | | ???????????????????## ##??????????# #?## | | ????????????????????####???????????# #??### | | ???????????????????????????????????# #????# | | ?????????????????????????#######???# #????? | | ???????????????????????### ##??# #????? | | ??????????????????????## #??# #????? | | ??????????????????????# ##?# #????? | | ??????????????????????# ### #????? | | ??????????????????????## ## #????? | | ???????????????????????##### # #????? | | ???????????????????????????## # #????? | | ????????????????????#######?## #????? | | ??????????????????? ?## ####????# | | ????????????????????? ?## ##?????## | | ????????????????????????# ## ##?#### | | ?????????????????????????# ### | | ?????????????????????????## ## | | ??????????????????????????## # | | ???????????????????????????## ## | | ????????????????????????????## ###### ##? | | ?????????????????????????????## ##????###?? | | ??????????????????????????????####?????????? | +----------------------------------------------------+ Best States ------------- Heat Dissipation 25 Energy Generation 10 Energy Capacity 125 Matter Stores 300 Matter Capacity 300 Sight Range 16 Terrain Scan Density 10 Evasion (%) 53 Recoil Reduction 2 Item Schematics ----------------- None Robot Schematics ------------------ None Fabricated ------------ Nothing Alien Tech Used ----------------- None Achievements -------------- None Challenges ------------ None Game ------ Seed ArchitectAuthchipSegregator Manual? 0 Play Time 00:10:28 Cumulative 7.8 hours Start 2022.04.23 @ 17:39:36 End 2022.04.23 @ 17:47:17 Sessions 1 Manual Loads 0 Difficulty Rogue Special Mode None Game No. 13 Rogue 13 Adventurer 0 Explorer 0 Win Type - Total 0 Types 0/0/0/0/0/0/0/0/0 Lore% 18 Gallery% 14 Achievement% 19 Wizard Run 0 Options --------- ASCII 0 Keyboard 0 Movement Numpad Keybinds 0 Fullscreen 2 Font 18/SmallcapsGlow Map View 76x50 Tactical HUD 1 Map Filters NONE Filters NONE Steam 1 RUN: b35a4bdd-ebea-4b8c-9264-8ad6e7f7248a